Cogmind - Beta 13 @@@ ROGUE MODE // 2024.03.31 @ 21:49:00 Player: AndK Result: Destroyed by as-88318 with Assembled Blade Performance ------------- Evolutions (0) 0 Regions Visited (3) 600 Robots Destroyed (25) 125 Value Destroyed (522) 522 Prototype IDs (2) 40 Alien Tech Used (0) 0 Bonus (300) 300 TOTAL SCORE: 1587 Bonus ------- Aligned with FarCom 300 Cogmind --------- Core Integrity 0/250 Matter 264/300 Energy 250/250 System Corruption 1% Temperature Cool (5) Movement Treading (320) Ox2 Location -10/Exiles Parts ------- > --- POWER (1) -------- (None) > --- PROPULSION (2) --- Light Treads > --- UTILITY (2) ------ High-capacity Storage Unit Medium Battery > --- WEAPON (2) ------- (None) > --- INVENTORY (20) --- Ion Engine Light Nuclear Core Reinforced Deuterium Engine Fission Core Light Fission Core Tractor Beam Splice Drone Bay Small Laser Mining Laser Peak State ------------ > --- POWER ------------ Light Ion Engine > --- PROPULSION ------- Light Treads Light Treads > --- UTILITY ---------- High-capacity Storage Unit Medium Battery > --- WEAPON ----------- Assault Rifle Rocket Launcher > --- INVENTORY -------- Ion Engine Light Nuclear Core Fission Core Light Fission Core Tractor Beam Splice Drone Bay Small Laser Mining Laser [Rating: 10] Favorites ----------- Power Light Ion Engine Engine Light Ion Engine Propulsion Light Treads Treads Light Treads Leg Aluminum Leg Utility Medium Battery Storage Medium Battery Protection Propulsion Shielding Weapon Assault Rifle Energy Gun Small Laser Ballistic Gun Assault Rifle Launcher Rocket Launcher Build | -11 -10 -10 -10 ------- Run | Yrd Mat Min Exi Slots Evolved . | . . . . Power . | . . . . Propulsion . | . . . . Utility . | . . . . Weapon . | . . . . Parts Attached 21 | 1 17 3 . Power 3 | 1 1 1 . Engine 3 | 1 1 1 . Core . | . . . . Reactor . | . . . . Propulsion 7 | . 7 . . Treads 4 | . 4 . . Leg 3 | . 3 . . Wheel . | . . . . Hover . | . . . . Flight . | . . . . Utility 5 | . 4 1 . Device . | . . . . Storage 4 | . 3 1 . Processor . | . . . . Hackware . | . . . . Protection 1 | . 1 . . Artifact . | . . . . Weapon 6 | . 5 1 . Energy Gun 2 | . 2 . . Energy Cannon . | . . . . Ballistic Gun 3 | . 3 . . Ballistic Cannon . | . . . . Launcher 1 | . . 1 . Special Weapon . | . . . . Impact Weapon . | . . . . Slashing Weapon . | . . . . Piercing Weapon . | . . . . Special Melee Weapon . | . . . . Unidentified Prototypes . | . . . . Parts Lost 9 | . 5 . 4 Power 2 | . 1 . 1 Propulsion 2 | . 1 . 1 Utility 1 | . 1 . . Weapon 4 | . 2 . 2 Highest Loss Streak 4 | . 3 . 4 To Critical Strikes . | . . . . Average Slot Usage (%) 97 | . 92 100 99 Engine 12 | . 11 14 13 Treads 26 | . 23 28 28 Leg 1 | . 3 . . Storage 23 | . 15 28 28 Protection 3 | . 8 . . Energy Gun 2 | . 5 1 . Ballistic Gun 17 | . 22 14 14 Launcher 8 | . . 12 14 Naked Turns . | . . . . Heaviest Build 51 | 3 13 51 51 Greatest Support 40 | 3 40 40 40 Greatest Overweight (x) 3 | . 3 1 1 Average Overweight (x) . | . . . 1 Largest Inventory Capacity 20 | 5 8 20 20 Average Capacity 14 | 5 5 19 20 Most Carried 9 | 5 5 6 9 Average Carried 5 | 3 4 4 8 Final Capacity 20 | 5 8 20 20 Final Carried 9 | 5 2 6 9 Class Distribution -------------------- 95% | Mutant 4% | Scavenger-Mutant Dominant Class ---------------- Mutant | -10/Materials Mutant | -10/Mines Mutant | -10/Exiles Resources | -11 -10 -10 -10 ----------- Run | Yrd Mat Min Exi Matter Collected 700 | 210 325 165 . Remotely . | . . . . Salvage Created 606 | . 470 126 10 Parts 60 | . 37 13 10 Haulers Intercepted . | . . . . Recyclers Shooed . | . . . . Parts Field Recycled . | . . . . Retrieved Matter . | . . . . Parts Self-Destructed . | . . . . Prevented . | . . . . Kills | -11 -10 -10 -10 ------- Run | Yrd Mat Min Exi Combat Hostiles Destroyed 21 | . 12 8 1 Guns 15 | . 12 3 . AOE 6 | . . 5 1 Classes Destroyed 6 | . 4 . 2 Operator 1 | . 1 . . Watcher 2 | . 2 . . Swarmer 10 | . 4 6 . Grunt 10 | . 8 2 . Zionite 1 | . . . 1 Assembled 1 | . . . 1 Best Kill Streak 3 | . 3 3 3 Combat Bots Only 3 | . 3 3 1 Max Kills in Single Turn 3 | . 1 2 3 Gunslinging . | . . . . Exploded 2 | . . 2 1 Melee . | . . . . Uniques/NPCs Destroyed 1 | . . . 1 EX-BIN (-10/Exiles) Combat | -11 -10 -10 -10 -------- Run | Yrd Mat Min Exi Hostile Shots Fired 136 | . 81 37 18 Missed 29 | . 19 8 2 Damage Taken 1375 | . 727 244 404 Core 281 | . 105 27 149 Absorbed by Shields . | . . . . Redirected to Shielding 50 | . 50 . . Core Remaining (%) 100 | 100 . . . Volleys Fired 61 | . 44 13 4 Largest 2 | . 2 2 2 Hottest 60 | . 60 60 53 Shots Fired 116 | . 85 23 8 Gun 106 | . 85 17 4 Cannon . | . . . . Launcher 10 | . . 6 4 Special . | . . . . Kinetic 83 | . 66 13 4 Thermal 23 | . 19 4 . Explosive 10 | . . 6 4 Electromagnetic . | . . . . Robot Hit Streak 5 | . 5 3 2 Robot Miss Streak 4 | . 4 4 2 Penetration Max . | . . . . Secondary Targets 3 | . 2 1 . Max Gunslinging Chain 1 | . 1 1 . Shots Hit Robots 53 | . 40 10 3 Core Hits 39 | . 26 7 6 Critical Kills . | . . . . Critical Parts Destroyed . | . . . . Critical Strikes . | . . . . Melee Attacks . | . . . . Impact . | . . . . Slashing . | . . . . Piercing . | . . . . Sneak Attacks . | . . . . Combat Hostiles . | . . . . Follow-up Attacks . | . . . . Damage Inflicted 1274 | . 544 428 302 Guns 657 | . 540 79 38 Cannons . | . . . . Explosions 613 | . . 349 264 Melee . | . . . . Ramming 4 | . 4 . . Kinetic 487 | . 392 57 38 Thermal 170 | . 148 22 . Explosive 613 | . . 349 264 Electromagnetic . | . . . . Impact . | . . . . Slashing . | . . . . Piercing . | . . . . Highest Corruption 1 | . 1 1 1 Average Corruption 1 | . 1 1 1 Corruption Purged . | . . . . Corruption Blocked . | . . . . Effects 31 | . 8 13 10 Message Errors 7 | . 2 3 2 Matter Fused 2 | . 2 . . Heat Flow Errors 6 | . 1 3 2 Energy Discharges 4 | . 1 1 2 Data Loss (minor) 8 | . 2 4 2 Data Loss (major) 1 | . . . 1 Misfires 2 | . . 1 1 Alerts 1 | . . 1 . Overload Shots . | . . . . Overflow Damage 24 | . . 10 14 Projectiles . | . . . . Explosions 24 | . . 10 14 Melee . | . . . . Knockbacks . | . . . . Impact . | . . . . Kinetic . | . . . . Secondary . | . . . . Self-Inflicted Damage 76 | . . . 76 Shots 2 | . . . 2 Rammed 1 | . 1 . . Targets Rammed 1 | . 1 . . Kicked . | . . . . Crushed . | . . . . Highest Temperature 264 | . 257 143 264 Average Temperature 72 | . 53 62 116 Received Heat Transfer 379 | . 330 9 40 Siege Activations . | . . . . Robots Corrupted . | . . . . Combat Hostiles . | . . . . Parts Fried . | . . . . Impact Corruptions . | . . . . Robots Melted . | . . . . Combat Hostiles . | . . . . Parts Melted . | . . . . Heat Transferred 400 | . 350 50 . Parts Sabotaged . | . . . . Parts Stolen . | . . . . Parts Stripped . | . . . . Power Chain Reactions . | . . . . Alert | -11 -10 -10 -10 ------- Run | Yrd Mat Min Exi Peak Influence 151 | . 140 151 . Initial . | . . . . Average 53 | . 67 39 . Maximum Alert Level . | . . . . Low Security (%) 100 | 100 100 100 . Level 1 . | . . . . Level 2 . | . . . . Level 3 . | . . . . Level 4 . | . . . . Level 5 . | . . . . High Security . | . . . . Max Security . | . . . . Squads Dispatched 3 | . 3 . . Investigation 2 | . 2 . . Extermination . | . . . . Reinforcement 1 | . 1 . . Assault . | . . . . Garrison . | . . . . Intercept . | . . . . Searches Triggered . | . . . . Construction Impeded . | . . . . Haulers Reinforced . | . . . . Active Scanning Responses . | . . . . Cargo Convoy Interrupts . | . . . . Stealth | -11 -10 -10 -10 --------- Run | Yrd Mat Min Exi Distress Signals 2 | . 2 . . Communications Jammed . | . . . . Distress Signals . | . . . . Times Spotted 36 | . 21 7 8 Peak Tracking Total 11 | . 4 3 11 Tactical Retreats 3 | . 3 . . Traps | -11 -10 -10 -10 ------- Run | Yrd Mat Min Exi Traps Triggered 3 | . 3 . . Indirectly . | . . . . Trap Hack Attempts . | . . . . Triggered . | . . . . Disarmed . | . . . . Reprogrammed . | . . . . Reused . | . . . . Traps Extracted . | . . . . Installed . | . . . . Triggered . | . . . . Machines | -11 -10 -10 -10 ---------- Run | Yrd Mat Min Exi Machines Disabled 4 | . . 1 3 Max in Single Turn 1 | . . 1 1 Machines Repaired . | . . . . Machines Dismantled . | . . . . Machines Sabotaged . | . . . . Overloaded Fab Kills . | . . . . Hacking | -11 -10 -10 -10 --------- Run | Yrd Mat Min Exi Machines Accessed 11 | . 6 1 4 Terminals 4 | . 4 . . Fabricators . | . . . . Repair Stations . | . . . . Recycling Units 2 | . 2 . . Scanalyzers . | . . . . Garrison Access . | . . . . Total Hacks 68 | . 18 1 49 Successful 62 | . 12 1 49 Failed 6 | . 6 . . Catastrophic 1 | . 1 . . Database Lockouts . | . . . . Manual 4 | . 2 . 2 Terminals 14 | . 14 . . Fabricators . | . . . . Repair Stations . | . . . . Recycling Units 4 | . 4 . . Scanalyzers . | . . . . Garrison Access . | . . . . Terminal Hacks 58 | . 8 1 49 Record 50 | . 1 . 49 Prototype ID Bank 1 | . 1 . . Open Door 1 | . . 1 . Level Access Points 1 | . 1 . . Emergency Access Points 1 | . 1 . . Alert Level 2 | . 2 . . Hauler Manifests 1 | . 1 . . Zone Layout 1 | . 1 . . Fabricator Hacks . | . . . . Repair Station Hacks . | . . . . Recycling Unit Hacks 4 | . 4 . . Process 2 | . 2 . . Report Inventory 1 | . 1 . . Retrieve Matter 1 | . 1 . . Scanalyzer . | . . . . Garrison Access Hacks . | . . . . Unauthorized Hacks . | . . . . Terminals . | . . . . Fabricators . | . . . . Repair Stations . | . . . . Recycling Units . | . . . . Scanalyzers . | . . . . Garrison Access . | . . . . Data Cores Recovered . | . . . . Used . | . . . . Hacking Detections 4 | . 4 . . Full Trace Events 3 | . 3 . . Feedback Events . | . . . . Feedback Blocked . | . . . . Robot Schematics Acquired . | . . . . Robots Built . | . . . . Authchips . | . . . . Time . | . . . . Total Robot Build Rating . | . . . . Part Schematics Acquired . | . . . . Parts Built . | . . . . Authchips . | . . . . Time . | . . . . Total Part Build Rating . | . . . . Parts Repaired . | . . . . Time . | . . . . Parts Recycled . | . . . . Recycled Matter 90 | . 90 . . Retrieved Matter . | . . . . Retrieved Components . | . . . . Parts Scanalyzed . | . . . . Part Schematics Acquired . | . . . . Parts Damaged . | . . . . Bothacking | -11 -10 -10 -10 ------------ Run | Yrd Mat Min Exi Used RIF Installer . | . . . . Robots Hacked . | . . . . Non-combat . | . . . . Combat . | . . . . Robot Hacks Applied . | . . . . Relay Couplers Released . | . . . . Fabnet Peak Effective % . | . . . . Robots Rewired . | . . . . Allies Hacked . | . . . . Hacks Repelled . | . . . . Allies | -11 -10 -10 -10 -------- Run | Yrd Mat Min Exi Total Allies . | . . . . Largest Group . | . . . . Highest-Rated Group . | . . . . Highest-Rated Ally . | . . . . Total Orders . | . . . . Ally Attacks . | . . . . Total Damage . | . . . . Kills . | . . . . Allies Corrupted . | . . . . Allies Melted . | . . . . Intel | -11 -10 -10 -10 ------- Run | Yrd Mat Min Exi Robot Analysis Total . | . . . . Derelict Logs Recovered 3 | . . 3 . Drone Launches . | . . . . Drone Recoveries . | . . . . Exploration | -11 -10 -10 -10 ------------- Run | Yrd Mat Min Exi Turns Passed 4713 | 28 1650 1608 1427 Spaces Moved 2260 | 42 981 652 585 Core 58 | 42 16 . . Treads 2034 | . 797 652 585 Legs 168 | . 168 . . Wheels . | . . . . Hover . | . . . . Flight . | . . . . Fastest Speed 50 | 50 50 160 240 Average Speed 197 | 50 151 236 240 Slowest Speed 240 | 50 200 240 240 Overloaded Moves . | . . . . Propulsion Burnouts . | . . . . Robots Hopped . | . . . . Cave-ins Triggered . | . . . . Exploration Rate (%) 70 | 3 94 98 87 Regions Visited 3 Branch Regions 2 Pre-discovered Areas 3 | . . 2 1 Known Exits Taken . | . . . . Unknown Exits Taken 3 | 1 1 1 . Scrap Searched 1 | . . 1 . Spaces Dug . | . . . . Terrain Destroyed 56 | . . 43 13 Melee . | . . . . Projectile . | . . . . AOE 56 | . . 43 13 Terrain Rammed . | . . . . Walls Destroyed . | . . . . Machines Disabled . | . . . . Actions | -11 -10 -10 -10 --------- Run | Yrd Mat Min Exi Total 2404 | 48 1060 694 602 Wait 19 | . . 19 . Move 2257 | 41 980 651 585 Hop . | . . . . Pick Up 26 | 6 10 6 4 Fast Attach 5 | . 5 . . Attach 11 | 1 10 . . Detach . | . . . . Swap 5 | . 2 3 . Drop 11 | . 8 2 1 Fire 61 | . 44 13 4 Melee . | . . . . Ram . | . . . . Kick . | . . . . Crush 1 | . 1 . . Escape Stasis . | . . . . Rewire 8 | . . . 8 Trap . | . . . . Miscellaneous . | . . . . Route ------- -11/Scrapyard -10/Materials (discovered 5 exits: *Mat x3 / *Min x2) -10/Mines (discovered 3 exits: *Mat x2 / *Exi) -10/Exiles History --------- Turn | Location | Event 8 | -11/Scrapyard | Discovered new exit (range 15) 29 | -11/Scrapyard | Entered Materials 298 | -10/Materials | Discovered new exit (range 12) 305 | -10/Materials | Build established: Mutant 454 | -10/Materials | Discovered new exit (range 8) 622 | -10/Materials | Discovered new exit (range 11) 645 | -10/Materials | Identified exit to Materials 1125 | -10/Materials | Lost 3 parts (1p1u1w) 1679 | -10/Materials | Entered Mines 1692 | -10/Mines | Learned Materials security intel 1895 | -10/Mines | Received a Rocket Launcher from a helpful Derelict 1997 | -10/Mines | Core integrity fell below 50% 2280 | -10/Mines | Discovered exit to Materials (range 6) 2298 | -10/Mines | Found the Drone Emporium 2314 | -10/Mines | Found Prototype Device 2526 | -10/Mines | Learned location of Storage (-9) 2679 | -10/Mines | Discovered exit to Materials (range 15) 2768 | -10/Mines | Deemed a non-threat by the Exiles lab entrance 2768 | -10/Mines | Discovered new exit (range 5) 3018 | -10/Mines | Learned location of Zion (-7) 3287 | -10/Mines | Entered Exiles 3358 | -10/Exiles | Met 8R-AWN 3398 | -10/Exiles | Met EX-HEX 3490 | -10/Exiles | Met EX-DEC 3742 | -10/Exiles | Met EX-BIN 4000 | -10/Exiles | Aligned with FarCom system 4002 | -10/Exiles | Given EX-Vault access code 4265 | -10/Exiles | Visited The Gauntlet 4697 | -10/Exiles | Attacked by the Exiles 4710 | -10/Exiles | Destroyed EX-BIN 4711 | -10/Exiles | Core integrity fell below 20% 4714 | -10/Exiles | Destroyed by as-88318 with Assembled Blade Last Messages --------------- System corrupted: Component data lost. System corrupted: FCS attempts to trigger Rocket Launcher. System corrupted: Rocket Launcher misfires. EXILES: Hostile robot within lab perimeter. Defensive protocols time, folks! Machine disabled. EX-BIN: "I just want to science!" Destroyed EX Chip 1. Machine disabled. Lgt. Ion Engine destroyed. Destroyed Lgt. Ion Engine. Lgt. Treads destroyed. EX-BIN: "You can't kill me, my evil twin will get revenge!" EX-BIN destroyed. as-82038 destroyed. 8H-MB8(z) destroyed. Rocket Launcher destroyed. Assault Rifle destroyed. Map ----- +----------------------------------------------------+ | ????????????????#" ## #??????????????????? | | ????????????????#""""""## #?#########????????? | | ????????????????##"###### #?#"""""""#????????? | | ???????????????? "?????# #?#"""""""#????????? | | ???????????????"""??????# #?#"""""""#????????? | | ???????????????"""?????## ###"" """"#????????? | | ???????????????????????#" """"#????????? | | ???????????????????????#" """#????????? | | ???????????????????????#" """#????????? | | ???????????????????????#" """#????????? | | ????????########???????#" """#????????? | | ????????# """#???????#" """##???????? | | ????????#"" """#???????## """""???????? | | ????????#"" #????????# """##???????? | | ????????#"" #????????#" "X" """""???????? | | ????????#"" "#????????#" """ # ???????? | | ????????# ""#????????#" """""""""#????????? | | ????????#"" ""#???????##" ###########????????? | | ????????### ###????####"" #??????????????????? | | #####???### ###?#### " #??????????????????? | | """#####X# #"###""" ##?????????????????? | | """""" ##???###########??? | | "" """ ! #####"""""""""##?? | | " " * " """ """"##? | | a a "" " #? | | % @a " """#? | | # a " "#? | | ## " "## | | ?##" ""# | | ??#""" a "" | | ?##" # "" | | ?#"" ""###########""" | | ?#""" """##?????????##""" a | | #""" """##???????????#"""" | | #""" ""#???????????##"" | | #"" ########??####"""" | | #""" ## ####""" | | #"" """" | | ##"" | | ?#"""" | | ?## " | | ??#" " "" """ | | ??#"""" ""## ##""" " " ""#" | | ??#"" ""#### ######""" """##""""""" | | ??#" """"##??# #????###""""########## | | ??#""" """#???# #??????######????????? | | ??## ""##???! ????????????????????? | | ???#"" """##???#" ???????????????????? | | ???##""" ##????#" ???????????????????? | | ????##"""" ##?????#!!""!"??????????????????? | +----------------------------------------------------+ Best States ------------- Heat Dissipation 25 Energy Generation 10 Energy Capacity 425 Matter Stores 300 Matter Capacity 300 Sight Range 16 Terrain Scan Density 10 Propulsion Shielding 33 Evasion (%) 55 Recoil Reduction 2 Item Schematics ----------------- None Robot Schematics ------------------ None Fabricated ------------ Nothing Alien Tech Used ----------------- None Achievements -------------- Librarian Challenges ------------ None Game ------ Seed VisualAntimatterSubcomponent Manual? 0 Play Time 00:31:21 Cumulative 1.7 hours Start 2024.03.31 @ 21:18:19 End 2024.03.31 @ 21:49:00 Sessions 1 Manual Loads 0 Difficulty Rogue Special Mode None Game No. 4 Rogue 4 Adventurer 0 Explorer 0 Win Type - Total 0 Types 0/0/0/0/0/0/0/0/0 Lore% 8 Gallery% 4 Achievement% 4 Wizard Run 0 Options --------- Layout 1 ASCII 0 Keyboard 0 Movement Mouse Keybinds 0 Fullscreen 1 Font 32/SmallcapsGlow Map View 50x35 Zoom Use 0% Tactical HUD 0 Map Filters NONE Filters NONE Steam 1 RUN: 59e65dbc-279c-4f4f-adb6-524892eb99ee